Cogmind - Beta 14 @@@ ROGUE MODE // 2024.08.30 @ 00:13:33 Player: Some Pennies Result: Destroyed by G-50 Soldier with Heavy Laser Performance ------------- Evolutions (3) 1500 Regions Visited (10) 2000 Robots Destroyed (207) 1035 Value Destroyed (5602) 5602 Prototype IDs (45) 900 Alien Tech Used (0) 0 Bonus (-204) -204 TOTAL SCORE: 10833 Bonus ------- High Alert Combat Kills 582 Follower Combat Kills 55 Met Data Miner 300 Friendly Fire -1141 Cogmind --------- Core Integrity 0/700 Matter 234/300 Energy 9/100 System Corruption 10% Temperature Cool (9) Movement Core (900) Ox17 Location -6/Proximity Caves Parts ------- > --- POWER (2) -------- (None) > --- PROPULSION (4) --- (None) > --- UTILITY (5) ------ High-capacity Storage Unit Improved Signal Interpreter Core Analyzer Weapon Cycler > --- WEAPON (2) ------- Cooled Pulse Rifle Improved EM Pulse Cannon > --- INVENTORY (20) --- Structural Scanner Enhanced Optical Array Improved Sensor Array Advanced Terrain Scan Processor Transmission Jammer Transmission Jammer Improved Utility Shielding Makeshift Hacking Suite Improved EM Pulse Cannon Improved Datajack Makeshift Hammer Peak State ------------ > --- POWER ------------ Micro Nuclear Core Light Antimatter Reactor > --- PROPULSION ------- Carbon-fiber Leg Improved Titanium Leg Improved Titanium Leg Improved Titanium Leg > --- UTILITY ---------- Improved Cooling System High-capacity Storage Unit Improved Signal Interpreter Core Analyzer Layered Medium Armor Plating > --- WEAPON ----------- Cooled Pulse Rifle Cooled Pulse Rifle > --- INVENTORY -------- Improved Deuterium Engine Light Treads Improved Treads Improved Treads Structural Scanner Improved Sensor Array Advanced Terrain Scan Processor Core Analyzer Transmission Jammer Improved Utility Shielding Improved Light Armor Plating Makeshift Hacking Suite Cooled Pulse Rifle Cooled Pulse Rifle Improved EM Pulse Cannon Improved EM Pulse Cannon Missile Launcher Missile Launcher Improved Datajack Makeshift Hammer [Rating: 59] Favorites ----------- Power Improved Deuterium Engine Engine Improved Deuterium Engine Power Core Micro Nuclear Core Reactor Light Antimatter Reactor Propulsion Light Treads Treads Light Treads Leg Improved Titanium Leg Utility Core Analyzer Device Advanced Cooling System Storage Large Storage Unit Processor Core Analyzer Hackware Hacking Suite Protection Light Armor Plating Weapon Cooled Pulse Rifle Energy Gun Cooled Pulse Rifle Energy Cannon Heavy Particle Cannon Ballistic Gun Assault Rifle Ballistic Cannon Assault Cannon Launcher Missile Launcher Special Weapon Mining Laser Impact Weapon Makeshift Hammer Special Melee Weapon Datajack Build | -11 -10 -10 -10 -9 -8 -7 -7 -7 -7 -6 ------- Run | Yrd Mat Min Exi Min Mat Fac Low Low Dat Pro Slots Evolved 6 | . . . . . 4 2 . . . . Power 1 | . . . . . . 1 . . . . Propulsion 2 | . . . . . 2 . . . . . Utility 3 | . . . . . 2 1 . . . . Weapon . | . . . . . . . . . . . Parts Attached 213 | 3 21 7 3 10 80 26 4 20 2 37 Power 23 | . 2 1 . 1 4 6 . 4 . 5 Engine 15 | . 2 1 . 1 3 5 . 1 . 2 Core 6 | . . . . . 1 1 . 2 . 2 Reactor 2 | . . . . . . . . 1 . 1 Propulsion 35 | 2 . 2 . 2 16 3 1 6 . 3 Treads 26 | 2 . 2 . 2 12 . . 5 . 3 Leg 9 | . . . . . 4 3 1 1 . . Wheel . | . . . . . . . . . . . Hover . | . . . . . . . . . . . Flight . | . . . . . . . . . . . Utility 48 | 1 4 2 . 3 19 6 3 5 . 5 Device 21 | 1 . 1 . 3 7 2 2 2 . 3 Storage 4 | . 2 . . . 1 . . 1 . . Processor 6 | . . . . . 2 1 1 1 . 1 Hackware 2 | . . . . . 2 . . . . . Protection 15 | . 2 1 . . 7 3 . 1 . 1 Artifact . | . . . . . . . . . . . Weapon 107 | . 15 2 3 4 41 11 . 5 2 24 Energy Gun 26 | . . . 2 2 6 2 . 3 . 11 Energy Cannon 9 | . . . . . 1 2 . . . 6 Ballistic Gun 18 | . 2 1 . . 10 5 . . . . Ballistic Cannon 17 | . 7 . . . 10 . . . . . Launcher 23 | . 5 1 . 2 7 . . 2 . 6 Special Weapon 1 | . 1 . . . . . . . . . Impact Weapon 11 | . . . . . 7 2 . . 1 1 Slashing Weapon . | . . . . . . . . . . . Piercing Weapon . | . . . . . . . . . . . Special Melee Weapon 2 | . . . 1 . . . . . 1 . Unidentified Prototypes 4 | . . . . . 3 1 . . . . Corrupted Parts 1 | . . . . 1 . . . . . . System Corruption 7 | . . . . 7 . . . . . . Parts Lost 26 | . . 1 . 2 5 . . 1 . 17 Power 5 | . . . . . . . . . . 5 Propulsion 7 | . . . . . 2 . . 1 . 4 Utility 10 | . . 1 . 2 3 . . . . 4 Weapon 4 | . . . . . . . . . . 4 Highest Loss Streak 15 | . . 1 . 1 1 . . 1 . 15 To Critical Strikes 2 | . . . . . 1 . . . . 1 Average Slot Usage (%) 98 | . 99 100 100 99 97 98 100 99 100 97 Engine 11 | . 14 14 14 14 8 12 7 6 7 9 Core 1 | . . . . . . 1 7 7 7 4 Treads 22 | . 28 28 28 28 23 . . 15 30 29 Leg 8 | . . . . . 11 29 30 14 . . Device 5 | . 4 1 . 12 4 6 4 7 7 7 Storage 10 | . 14 14 14 14 9 7 7 7 7 7 Processor 5 | . . . . . 5 7 17 15 15 14 Hackware 2 | . . . . . 5 7 . . . . Protection 8 | . 9 12 14 1 10 7 7 7 7 6 Energy Gun 7 | . . . 8 27 2 6 15 14 1 12 Ballistic Gun 7 | . 19 13 8 . 5 7 . . . . Ballistic Cannon 5 | . 8 14 2 . 8 . . . . . Peak Build Rating 59 | 8 9 13 17 19 43 55 54 59 51 58 Average Rating 29 | 6 8 12 14 17 30 50 53 53 48 51 On Entrance 28 | 6 8 9 13 17 14 42 54 54 51 48 Naked Turns . | . . . . . . . . . . . Heaviest Build 77 | 12 33 37 38 38 66 76 66 74 74 77 Greatest Support 106 | 40 40 40 40 40 83 80 80 89 89 106 Greatest Overweight (x) 17 | . 10 . . . 2 1 . 1 . 17 Average Overweight (x) . | . . . . . . . . . . . Largest Inventory Capacity 20 | 8 15 15 15 15 20 20 20 20 20 20 Average Capacity 17 | 8 13 15 15 15 17 20 20 20 20 20 Most Carried 20 | 8 15 15 15 15 20 20 20 20 20 20 Average Carried 16 | 5 13 14 14 14 17 19 19 19 20 19 Final Capacity 20 | 8 15 15 15 15 20 20 20 20 20 20 Final Carried 20 | 8 15 15 15 14 20 20 20 20 20 11 Class Distribution -------------------- 66% | Scavenger-Mutant 32% | Mutant Dominant Class ---------------- Mutant | -10/Materials Scavenger-Mutant | -10/Mines Scavenger-Mutant | -10/Exiles Scavenger-Mutant | -9/Mines Scavenger-Mutant | -8/Materials Scavenger-Mutant | -7/Factory Mutant | -7/Lower Caves Scavenger-Mutant | -7/Lower Caves Scavenger-Mutant | -7/Data Miner Scavenger-Mutant | -6/Proximity Caves Resources | -11 -10 -10 -10 -9 -8 -7 -7 -7 -7 -6 ----------- Run | Yrd Mat Min Exi Min Mat Fac Low Low Dat Pro Matter Collected 4961 | 274 702 259 20 164 2217 495 50 301 . 479 Remotely . | . . . . . . . . . . . Salvage Created 7311 | 145 782 231 41 672 2656 1124 211 381 . 1068 Parts 395 | 9 56 26 3 26 155 52 10 24 . 34 Haulers Intercepted 10 | . 2 . . . 6 2 . . . . Recyclers Shooed 11 | . 2 1 . . 5 3 . . . . Parts Field Recycled . | . . . . . . . . . . . Retrieved Matter . | . . . . . . . . . . . Parts Self-Destructed 50 | . . . . . . . 9 18 . 23 Prevented . | . . . . . . . . . . . Kills | -11 -10 -10 -10 -9 -8 -7 -7 -7 -7 -6 ------- Run | Yrd Mat Min Exi Min Mat Fac Low Low Dat Pro Combat Hostiles Destroyed 142 | . 20 7 . 19 51 12 5 11 . 17 Guns 61 | . 4 3 . 6 17 11 5 9 . 6 Cannons 31 | . 3 1 . . 24 1 . . . 2 AOE 49 | . 13 3 . 13 10 . . 2 . 8 Classes Destroyed 20 | 2 7 . . 3 5 1 1 . . 1 Worker 11 | . 2 . . 1 6 2 . . . . Builder 10 | . 2 1 . 1 6 . . . . . Tunneler 5 | 2 1 2 . . . . . . . . Hauler 10 | . 2 . . . 6 2 . . . . Recycler 20 | 1 3 1 . 3 8 4 . . . . Minesweeper 1 | . . . . . . . . . . 1 Mechanic 4 | . . . . . 3 . . . . 1 Operator 3 | . 2 . . . 1 . . . . . Watcher 9 | . 2 . . . 5 2 . . . . Swarmer 39 | . 9 5 . 3 11 . 3 8 . . Grunt 60 | . 11 2 . 5 23 7 . . . 12 Brawler 4 | . . . . 1 . . . 1 . 2 Duelist 5 | . . . . . 3 . . 1 . 1 Sentry 12 | . . . . . 9 2 . 1 . . Specialist 2 | . . . . . 2 . . . . . Hunter 4 | . . . . 1 2 . 1 . . . Programmer 4 | . . . . . . 3 . . . 1 Heavy 1 | . . . . . 1 . . . . . Behemoth 2 | . . . . . . . 1 . . 1 Assembled 14 | . . . . 14 . . . . . . Commander 1 | . . . . . . . . 1 . . Best Kill Streak 11 | 1 5 3 . 11 8 6 3 4 . 7 Combat Bots Only 11 | . 5 3 . 11 4 3 3 4 . 6 Max Kills in Single Turn 7 | 1 3 1 . 7 5 1 1 2 . 2 Gunslinging 1 | . . . . . . . . 1 . . Exploded 5 | . 2 1 . 5 3 . . 1 . 2 Melee . | . . . . . . . . . . . Uniques/NPCs Destroyed . | . . . . . . . . . . . Combat | -11 -10 -10 -10 -9 -8 -7 -7 -7 -7 -6 -------- Run | Yrd Mat Min Exi Min Mat Fac Low Low Dat Pro Hostile Shots Fired 624 | . 56 30 . 41 180 78 29 51 . 159 Missed 196 | . 13 10 . 20 46 33 10 14 . 50 Damage Taken 7380 | . 550 275 . 425 2300 536 374 488 . 2432 Core 1176 | . 79 49 . 73 261 51 99 76 . 488 Absorbed by Shields . | . . . . . . . . . . . Redirected to Shielding 11 | . . . . . 11 . . . . . Ignored by Resistances 6 | . . . . . 6 . . . . . Regen/Repaired (Parts) 95 | . 59 . . . 36 . . . . . Core Remaining (%) 57 | 100 . . . 19 52 . . . . . Volleys Fired 472 | 11 75 24 1 43 172 61 10 21 . 54 Largest 2 | 2 2 2 1 2 2 2 2 2 . 2 Hottest 138 | 40 100 55 56 106 119 132 120 72 . 138 Shots Fired 912 | 22 139 44 1 86 336 123 20 42 . 99 Gun 572 | 22 90 20 1 80 112 121 20 38 . 68 Cannon 280 | . 32 20 . . 210 2 . . . 16 Launcher 59 | . 16 4 . 6 14 . . 4 . 15 Special 1 | . 1 . . . . . . . . . Kinetic 530 | 22 122 40 . . 276 70 . . . . Thermal 265 | . 1 . 1 40 46 51 20 38 . 68 Explosive 59 | . 16 4 . 6 14 . . 4 . 15 Electromagnetic 58 | . . . . 40 . 2 . . . 16 Robot Hit Streak 19 | 4 10 4 5 9 14 15 6 14 . 19 Robot Miss Streak 5 | 1 3 4 . 3 4 5 2 5 . 2 Penetration Max . | . . . . . . . . . . . Secondary Targets 9 | . . . . . 1 3 1 4 . . Max Gunslinging Chain 1 | . . . . . 1 1 1 1 . . Shots Hit Robots 603 | 14 88 19 5 45 222 91 14 29 1 75 Core Hits 362 | 4 49 16 1 49 127 39 8 23 . 46 Critical Kills . | . . . . . . . . . . . Critical Parts Destroyed 1 | . . . . . . 1 . . . . Critical Strikes 19 | . . . . 6 4 5 2 2 . . Burn 13 | . . . . 5 . 4 2 2 . . Destroy 1 | . . . . . . 1 . . . . Blast 4 | . . . . . 4 . . . . . Corrupt 1 | . . . . 1 . . . . . . Melee Attacks 18 | . . . 4 . 10 2 . . 1 1 Impact 13 | . . . . . 10 2 . . . 1 Slashing . | . . . . . . . . . . . Piercing . | . . . . . . . . . . . Sneak Attacks 6 | . . . 4 . 1 . . . 1 . Combat Hostiles 4 | . . . 4 . . . . . . . Follow-up Attacks . | . . . . . . . . . . . Damage Inflicted 16766 | 159 2044 468 17 1822 6588 1629 480 729 . 2830 Guns 6872 | 159 721 148 17 710 1213 1581 480 513 . 1330 Cannons 4437 | . 393 125 . . 3592 48 . . . 279 Explosions 5291 | . 930 183 . 1098 1643 . . 216 . 1221 Melee 116 | . . . . . 116 . . . . . Ramming 50 | . . 12 . 14 24 . . . . . Kinetic 6477 | 159 1114 273 . . 4146 785 . . . . Thermal 4483 | . . . 17 688 659 796 480 513 . 1330 Explosive 4882 | . 930 183 . 689 1643 . . 216 . 1221 Electromagnetic 758 | . . . . 431 . 48 . . . 279 Impact 116 | . . . . . 116 . . . . . Slashing . | . . . . . . . . . . . Piercing . | . . . . . . . . . . . Highest Corruption 10 | . . . . 10 . 2 2 2 2 10 Average Corruption 2 | . . . . 7 . 1 2 2 2 3 Corruption Purged . | . . . . . . . . . . . Corruption Blocked . | . . . . . . . . . . . Effects 51 | . . . . 2 . 10 3 16 . 20 Message Errors 12 | . . . . 2 . 1 3 2 . 4 Matter Fused 10 | . . . . . . 1 . 5 . 4 Heat Flow Errors 8 | . . . . . . 3 . 3 . 2 Energy Discharges 5 | . . . . . . 3 . . . 2 Parts Fused 1 | . . . . . . . . 1 . . Data Loss (minor) 10 | . . . . . . . . 4 . 6 Data Loss (major) 1 | . . . . . . 1 . . . . Misfires 2 | . . . . . . 1 . . . 1 Alerts 1 | . . . . . . . . 1 . . Weapon Failures 1 | . . . . . . . . . . 1 Overload Shots 18 | . . . . . . . 8 . . 10 Effects 1 | . . . . . . . . . . 1 Short Circuit 1 | . . . . . . . . . . 1 Overflow Damage 394 | . 61 16 . 28 244 . . 8 . 37 Projectiles 185 | . 26 . . . 132 . . . . 27 Explosions 133 | . 35 16 . 28 36 . . 8 . 10 Melee 76 | . . . . . 76 . . . . . Knockbacks 45 | . 5 1 . 1 38 . . . . . Impact 1 | . . . . 1 . . . . . . Kinetic 43 | . 5 1 . . 37 . . . . . Secondary 1 | . . . . . 1 . . . . . Self-Inflicted Damage 434 | . 53 59 . 88 122 . . . . 112 Shots 14 | . 2 2 . 3 4 . . . . 3 Rammed 6 | . . 4 . 2 . . . . . . Targets Rammed 7 | . . 4 . 2 1 . . . . . Kicked 1 | . . . . . 1 . . . . . Crushed . | . . . . . . . . . . . Highest Temperature 305 | . 45 111 26 255 305 228 7 268 . 209 Average Temperature 59 | . 10 41 17 83 64 62 4 144 . 55 Received Heat Transfer 2088 | . 195 114 . 20 657 249 24 30 . 799 Effects 3 | . . . . . 3 . . . . . Interference 3 | . . . . . 3 . . . . . Siege Activations . | . . . . . . . . . . . Robots Corrupted 1 | . . . . . 1 . . . . . Combat Hostiles . | . . . . . . . . . . . Parts Fried 5 | . . . . 2 3 . . . . . Impact Corruptions 4 | . . . . . 4 . . . . . Robots Melted 1 | . . . . . . . . . . 1 Combat Hostiles 1 | . . . . . . . . . . 1 Parts Melted 16 | . . . . 1 . 6 3 . . 6 Heat Transferred 9000 | . . . 37 1673 1295 1776 870 1147 . 2202 Parts Sabotaged . | . . . . . . . . . . . Parts Stolen . | . . . . . . . . . . . Parts Stripped . | . . . . . . . . . . . Power Chain Reactions . | . . . . . . . . . . . Alert | -11 -10 -10 -10 -9 -8 -7 -7 -7 -7 -6 ------- Run | Yrd Mat Min Exi Min Mat Fac Low Low Dat Pro Peak Influence 985 | 15 511 346 . 173 985 644 . . . . Initial 448 | . 9 161 . . 11 448 . . . . Average 342 | 9 286 196 . 81 460 520 . . . . Maximum Alert Level 3 | . 2 1 . . 3 2 . . . . Low Security (%) 34 | 100 29 38 . 100 24 . . . . . Level 1 24 | . 41 61 . . 17 . . . . . Level 2 32 | . 28 . . . 35 100 . . . . Level 3 8 | . . . . . 22 . . . . . Level 4 . | . . . . . . . . . . . Level 5 . | . . . . . . . . . . . High Security . | . . . . . . . . . . . Max Security . | . . . . . . . . . . . Sterilizations 1 | . . . . . 1 . . . . . Squads Dispatched 22 | . 4 1 . 1 8 7 . . . 1 Investigation 5 | . 2 1 . . 1 1 . . . . Extermination 3 | . . . . . . 3 . . . . Reinforcement 11 | . 2 . . 1 5 3 . . . . Assault 3 | . . . . . 2 . . . . 1 Garrison . | . . . . . . . . . . . Intercept . | . . . . . . . . . . . Searches Triggered . | . . . . . . . . . . . Construction Impeded 3 | . . . . 1 2 . . . . . Haulers Reinforced 2 | . . . . . . 2 . . . . Active Scanning Responses . | . . . . . . . . . . . Cargo Convoy Interrupts . | . . . . . . . . . . . Stealth | -11 -10 -10 -10 -9 -8 -7 -7 -7 -7 -6 --------- Run | Yrd Mat Min Exi Min Mat Fac Low Low Dat Pro Distress Signals 8 | . 1 . . . 7 . . . . . Communications Jammed . | . . . . . . . . . . . Distress Signals . | . . . . . . . . . . . Times Spotted 196 | . 34 9 . 20 75 17 6 11 . 24 Peak Tracking Total 10 | . 5 3 . 10 5 4 3 4 . 9 Tactical Retreats 6 | . . 1 . . 5 . . . . . Traps | -11 -10 -10 -10 -9 -8 -7 -7 -7 -7 -6 ------- Run | Yrd Mat Min Exi Min Mat Fac Low Low Dat Pro Traps Triggered 4 | . 2 . . . . 2 . . . . Indirectly . | . . . . . . . . . . . Trap Hack Attempts . | . . . . . . . . . . . Triggered . | . . . . . . . . . . . Disarmed . | . . . . . . . . . . . Reprogrammed . | . . . . . . . . . . . Reused . | . . . . . . . . . . . Traps Extracted . | . . . . . . . . . . . Installed . | . . . . . . . . . . . Triggered . | . . . . . . . . . . . Machines | -11 -10 -10 -10 -9 -8 -7 -7 -7 -7 -6 ---------- Run | Yrd Mat Min Exi Min Mat Fac Low Low Dat Pro Machines Disabled 13 | . 4 2 . 2 5 . . . . . Max in Single Turn 2 | . 2 1 . 2 2 . . . . . Machines Repaired . | . . . . . . . . . . . Machines Dismantled . | . . . . . . . . . . . Machines Sabotaged . | . . . . . . . . . . . Overloaded Fab Kills . | . . . . . . . . . . . Hacking | -11 -10 -10 -10 -9 -8 -7 -7 -7 -7 -6 --------- Run | Yrd Mat Min Exi Min Mat Fac Low Low Dat Pro Machines Accessed 33 | . 8 1 2 . 14 2 . 2 4 . Terminals 17 | . 5 . . . 10 2 . . . . Fabricators . | . . . . . . . . . . . Repair Stations 2 | . 1 . . . 1 . . . . . Recycling Units 4 | . 2 . . . 2 . . . . . Scanalyzers 1 | . . . . . 1 . . . . . Garrison Access . | . . . . . . . . . . . Total Hacks 125 | . 27 1 2 . 57 6 . 4 28 . Successful 91 | . 17 1 2 . 38 1 . 4 28 . Failed 34 | . 10 . . . 19 5 . . . . Catastrophic 2 | . 1 . . . . 1 . . . . Database Lockouts . | . . . . . . . . . . . Manual 43 | . 12 . 1 . 28 2 . . . . Terminals 67 | . 19 . . . 42 6 . . . . Fabricators . | . . . . . . . . . . . Repair Stations 6 | . 3 . . . 3 . . . . . Recycling Units 9 | . 5 . . . 4 . . . . . Scanalyzers 8 | . . . . . 8 . . . . . Garrison Access . | . . . . . . . . . . . Terminal Hacks 55 | . 6 1 2 . 14 . . 4 28 . Record 15 | . . . 1 . . . . 3 11 . Part Schematic 11 | . . . . . . . . . 11 . Robot Schematic 3 | . . . . . . . . . 3 . Prototype ID Bank 5 | . 1 . . . 1 . . . 3 . Open Door 2 | . . 1 . . . . . 1 . . Branch Access Points 2 | . 1 . . . 1 . . . . . Emergency Access Points 1 | . 1 . . . . . . . . . Terminal Index 3 | . 1 . . . 2 . . . . . Recycling Unit Index 1 | . . . . . 1 . . . . . Alert Level 2 | . . . . . 2 . . . . . Unreport Threat 2 | . . . . . 2 . . . . . Locate Traps 4 | . 1 . . . 3 . . . . . Transport Status 1 | . 1 . . . . . . . . . Hauler Manifests 1 | . . . . . 1 . . . . . Zone Layout 1 | . . . . . 1 . . . . . Derelict Proto ID Bank 1 | . . . 1 . . . . . . . Fabricator Hacks . | . . . . . . . . . . . Repair Station Hacks 4 | . 2 . . . 2 . . . . . Scan Component 2 | . 1 . . . 1 . . . . . Repair 2 | . 1 . . . 1 . . . . . Recycling Unit Hacks 2 | . 1 . . . 1 . . . . . Retrieve Components 2 | . 1 . . . 1 . . . . . Scanalyzer 8 | . . . . . 8 . . . . . Insert Component 4 | . . . . . 4 . . . . . Analyze 4 | . . . . . 4 . . . . . Garrison Access Hacks . | . . . . . . . . . . . Unauthorized Hacks 22 | . 8 . . . 13 1 . . . . Terminals 19 | . 6 . . . 12 1 . . . . Botnet 5 | . 1 . . . 3 1 . . . . Skim 14 | . 5 . . . 9 . . . . . Fabricators . | . . . . . . . . . . . Repair Stations . | . . . . . . . . . . . Recycling Units 3 | . 2 . . . 1 . . . . . Tunnel 3 | . 2 . . . 1 . . . . . Scanalyzers . | . . . . . . . . . . . Garrison Access . | . . . . . . . . . . . Data Cores Recovered . | . . . . . . . . . . . Used . | . . . . . . . . . . . Hacking Detections 22 | . 7 . . . 13 2 . . . . Full Trace Events 1 | . . . . . . 1 . . . . Feedback Events . | . . . . . . . . . . . Feedback Blocked . | . . . . . . . . . . . Robot Schematics Acquired 3 | . . . . . . . . . 3 . Robots Built . | . . . . . . . . . . . Authchips . | . . . . . . . . . . . Time . | . . . . . . . . . . . Total Robot Build Rating . | . . . . . . . . . . . Part Schematics Acquired 15 | . . . . . 4 . . . 11 . Parts Built . | . . . . . . . . . . . Authchips . | . . . . . . . . . . . Time . | . . . . . . . . . . . Total Part Build Rating . | . . . . . . . . . . . Parts Repaired 2 | . 1 . . . 1 . . . . . Time 70 | . 26 . . . 44 . . . . . Parts Recycled . | . . . . . . . . . . . Recycled Matter . | . . . . . . . . . . . Retrieved Matter . | . . . . . . . . . . . Retrieved Components 19 | . 9 . . . 10 . . . . . Parts Scanalyzed 4 | . . . . . 4 . . . . . Part Schematics Acquired 4 | . . . . . 4 . . . . . Parts Damaged . | . . . . . . . . . . . Bothacking | -11 -10 -10 -10 -9 -8 -7 -7 -7 -7 -6 ------------ Run | Yrd Mat Min Exi Min Mat Fac Low Low Dat Pro Used RIF Installer . | . . . . . . . . . . . Robots Hacked 1 | . . . . . . . . . 1 . Non-combat . | . . . . . . . . . . . Combat 1 | . . . . . . . . . 1 . Robot Hacks Applied 1 | . . . . . . . . . 1 . parse_system 1 | . . . . . . . . . 1 . Relay Couplers Released . | . . . . . . . . . . . Fabnet Peak Effective % . | . . . . . . . . . . . Robots Rewired 3 | . . . 3 . . . . . . . Allies Hacked . | . . . . . . . . . . . Hacks Repelled . | . . . . . . . . . . . Allies | -11 -10 -10 -10 -9 -8 -7 -7 -7 -7 -6 -------- Run | Yrd Mat Min Exi Min Mat Fac Low Low Dat Pro Total Allies 7 | . . 3 3 . . . . . . 1 Largest Group 6 | . . 3 6 6 . . . . . 1 Highest-Rated Group 96 | . . 40 77 77 . . . . . 96 Highest-Rated Ally 96 | . . 16 21 21 . . . . . 96 Total Orders . | . . . . . . . . . . . Ally Attacks 18 | . . . . 8 . . . . . 10 Total Damage 299 | . . . . 72 . . . . . 227 Kills 2 | . . . . 1 . . . . . 1 Allies Corrupted . | . . . . . . . . . . . Allies Melted . | . . . . . . . . . . . Intel | -11 -10 -10 -10 -9 -8 -7 -7 -7 -7 -6 ------- Run | Yrd Mat Min Exi Min Mat Fac Low Low Dat Pro Robot Analysis Total . | . . . . . . . . . . . Derelict Logs Recovered 7 | . . 1 . 2 . . . 2 . 2 Drone Launches 2 | . . . . . . . . . . 2 Drone Recoveries 1 | . . . . . . . . . . 1 Exploration | -11 -10 -10 -10 -9 -8 -7 -7 -7 -7 -6 ------------- Run | Yrd Mat Min Exi Min Mat Fac Low Low Dat Pro Turns Passed 10975 | 143 1511 1178 716 901 3056 987 283 1141 152 907 Spaces Moved 5773 | 65 667 670 426 463 1494 568 192 714 93 421 Core 32 | . 31 . . . . . . . . 1 Treads 3997 | 65 636 670 426 463 872 . . 352 93 420 Legs 1744 | . . . . . 622 568 192 362 . . Wheels . | . . . . . . . . . . . Hover . | . . . . . . . . . . . Flight . | . . . . . . . . . . . Fastest Speed 127 | 160 160 160 160 160 130 130 127 127 160 160 Average Speed 153 | 160 178 160 160 160 147 130 127 145 160 161 Slowest Speed 900 | 160 550 160 160 160 270 200 130 240 160 900 Overloaded Moves . | . . . . . . . . . . . Propulsion Burnouts . | . . . . . . . . . . . Robots Hopped . | . . . . . . . . . . . Cave-ins Triggered . | . . . . . . . . . . . Exploration Rate (%) 64 | 6 88 99 90 77 82 21 44 79 75 53 Regions Visited 10 Branch Regions 7 Pre-discovered Areas 8 | . 2 1 1 . 2 . . . 1 1 Known Exits Taken 7 | . 1 1 . . 1 1 1 1 1 . Unknown Exits Taken 3 | 1 . . 1 1 . . . . . . Scrap Searched 12 | . . 2 . 2 . . 2 3 . 3 Spaces Dug 50 | . 11 11 . . 8 2 . . . 18 Terrain Destroyed 406 | . 48 23 . 68 145 2 . 10 . 110 Melee 10 | . . . . . 7 2 . . . 1 Projectile 38 | . 1 . . . 37 . . . . . AOE 358 | . 47 23 . 68 101 . . 10 . 109 Terrain Rammed . | . . . . . . . . . . . Walls Destroyed . | . . . . . . . . . . . Machines Disabled . | . . . . . . . . . . . Actions | -11 -10 -10 -10 -9 -8 -7 -7 -7 -7 -6 --------- Run | Yrd Mat Min Exi Min Mat Fac Low Low Dat Pro Total 6995 | 84 854 736 459 535 2003 701 210 772 95 546 Wait 290 | . 64 9 4 14 161 18 . 1 . 19 Move 5763 | 64 666 669 425 462 1493 567 191 713 92 421 Hop . | . . . . . . . . . . . Pick Up 89 | 4 15 11 3 1 32 11 2 5 . 5 Fast Attach 49 | 1 2 . . 1 26 10 2 5 . 2 Attach 24 | . . 1 . 2 5 1 . 3 . 12 Detach 2 | . . . . . 1 . . . . 1 Swap 140 | 2 19 6 3 7 49 15 2 12 2 23 Drop 125 | 2 13 12 3 3 53 16 3 12 . 8 Fire 472 | 11 75 24 1 43 172 61 10 21 . 54 Melee 18 | . . . 4 . 10 2 . . 1 1 Ram . | . . . . . . . . . . . Kick 1 | . . . . . 1 . . . . . Crush 6 | . . 4 . 2 . . . . . . Escape Stasis . | . . . . . . . . . . . Rewire 16 | . . . 16 . . . . . . . Trap . | . . . . . . . . . . . Miscellaneous . | . . . . . . . . . . . Route ------- -11/Scrapyard -10/Materials (discovered 5 exits: *Mat x3 / *Min x2) -10/Mines (discovered 4 exits: *Mat x2 / *Exi / Sub) -10/Exiles (discovered 2 exits: [*Min x2]) -9/Mines -8/Materials (discovered 3 exits: *Fac x3) -7/Factory -7/Lower Caves -7/Lower Caves (discovered 2 exits: *Fac / *Dat) -7/Data Miner -6/Proximity Caves History --------- Turn | Location | Event 4 | -11/Scrapyard | Discovered new exit (range 3) 144 | -11/Scrapyard | Entered Materials 220 | -10/Materials | Discovered new exit (range 16) 300 | -10/Materials | Build established: Mutant 596 | -10/Materials | Discovered new exit (range 15) 858 | -10/Materials | Repaired Lgt. Armor Plating 943 | -10/Materials | Discovered new exit (range 13) 1291 | -10/Materials | Identified exit to Mines 1377 | -10/Materials | Learned location of 3 exits from Materials 1433 | -10/Materials | Learned location of 1 exit from Storage 1477 | -10/Materials | Learned 2 Storage zone layouts 1511 | -10/Materials | Learned Storage garrison access intel 1552 | -10/Materials | Learned Storage emergency access door positions 1572 | -10/Materials | Identified exit to Materials 1600 | -10/Materials | Learned location of 2 exits from Mines 1640 | -10/Materials | Learned 2 Materials zone layouts 1655 | -10/Materials | Entered Mines 1656 | -10/Mines | Identified exit to Exiles 1656 | -10/Mines | Identified exit to Subcaves 1880 | -10/Mines | Joined a pair of Derelicts in attacking an 0b10 outpost 1882 | -10/Mines | Core integrity fell below 50% 1983 | -10/Mines | Discovered exit to Materials (range 14) 2050 | -10/Mines | Met a Derelict shopkeep closing up shop 2131 | -10/Mines | Discovered exit to Materials (range 6) 2181 | -10/Mines | Build established: Scavenger-Mutant 2232 | -10/Mines | Received a Rocket Launcher from a helpful Derelict 2281 | -10/Mines | Learned location of Storage (-9) 2297 | -10/Mines | Assisted by bots powering up and referring to "LRC-V3" 2823 | -10/Mines | Deemed a non-threat by the Exiles lab entrance 2833 | -10/Mines | Entered Exiles 2833 | -10/Exiles | Found Exiles lab destroyed 2833 | -10/Exiles | Accompanied by 3 allies 2854 | -10/Exiles | Discovered new exit (range 15) 2977 | -10/Exiles | Learned location of Zion (-6) 3064 | -10/Exiles | Opened EX-Vault 3533 | -10/Exiles | Discovered new exit (range 10) 3549 | -10/Exiles | Entered Mines 3549 | -9/Mines | Accompanied by 6 allies 3584 | -9/Mines | Lost 5 allies 3614 | -9/Mines | Assembled infested the area 3658 | -9/Mines | Destroyed 11 combat bots 3813 | -9/Mines | A weapon hastily lodged in a ceiling crevice suddenly fell to the ground 4369 | -9/Mines | Learned Materials emergency access door positions 4378 | -9/Mines | Core integrity fell below 20% 4399 | -9/Mines | System corruption reached 10% 4410 | -9/Mines | Learned 2 Materials zone layouts 4412 | -9/Mines | Discovered new exit (range 5) 4450 | -9/Mines | Entered Materials 4450 | -8/Materials | Evolved 4 slots: Propulsion x2, Utility x2 4451 | -8/Materials | Identified exit to Factory 5155 | -8/Materials | Learned location of 1 exit from Storage 5201 | -8/Materials | Learned location of 1 exit from Recycling 5239 | -8/Materials | Learned 4 Recycling zone layouts 5294 | -8/Materials | Learned Storage emergency access door positions 5314 | -8/Materials | Learned Storage trap positions 5343 | -8/Materials | Learned Storage trap positions 5657 | -8/Materials | Repaired Imp. Cooling System 6809 | -8/Materials | Build established: Mutant 6850 | -8/Materials | First assault squad dispatched 7499 | -8/Materials | Sterilization system engaged 7499 | -8/Materials | Non-combat units ordered to evacuate 7506 | -8/Materials | Entered Factory 7506 | -7/Factory | Evolved 2 slots: Power x1, Utility x1 7902 | -7/Factory | Build established: Scavenger-Mutant 8413 | -7/Factory | Discovered new exit (range 15) 8447 | -7/Factory | Identified exit to Lower Caves 8493 | -7/Factory | Entered Lower Caves 8498 | -7/Lower Caves | Encountered a Warlord checkpoint 8581 | -7/Lower Caves | Spotted B-75 Beast 8596 | -7/Lower Caves | Destroyed B-75 Beast 8765 | -7/Lower Caves | Discovered new exit (range 13) 8775 | -7/Lower Caves | Identified exit to Lower Caves 8776 | -7/Lower Caves | Entered another Lower Caves area 8783 | -7/Lower Caves | Discovered new exit (range 13) 8798 | -7/Lower Caves | Identified exit to Factory 8837 | -7/Lower Caves | Learned Extension emergency access door positions 8837 | -7/Lower Caves | Learned Armory garrison access intel 8952 | -7/Lower Caves | Destroyed LM-UF5(g) 9114 | -7/Lower Caves | Learned 8 Factory zone layouts 9281 | -7/Lower Caves | Learned 12 Factory zone layouts 9350 | -7/Lower Caves | Found DCF Scrap (15 items) 9578 | -7/Lower Caves | Attracted the attention of an 0b10 checkpoint 9685 | -7/Lower Caves | Discovered new exit (range 10) 9698 | -7/Lower Caves | Identified exit to Data Miner 9917 | -7/Lower Caves | Entered Data Miner 9917 | -7/Data Miner | Discovered new exit (range 6) 9951 | -7/Data Miner | Met Data Miner 9978 | -7/Data Miner | Learned location of Section 7 (-2) 9978 | -7/Data Miner | Acquired the access code to Warlord's prototype stash 10010 | -7/Data Miner | Received God Mode back door access code from Data Miner 10067 | -7/Data Miner | Identified exit to Proximity Caves 10069 | -7/Data Miner | Entered Proximity Caves 10271 | -6/Proximity Caves | Learned Factory emergency access door positions 10625 | -6/Proximity Caves | Spotted B-75 Beast 10654 | -6/Proximity Caves | Core integrity fell below 50% 10662 | -6/Proximity Caves | Destroyed B-75 Beast 10920 | -6/Proximity Caves | Attracted the attention of an 0b10 outpost 10946 | -6/Proximity Caves | Escorted by Enhanced Grunt 10948 | -6/Proximity Caves | System corruption reached 10% 10951 | -6/Proximity Caves | Core integrity fell below 20% 10976 | -6/Proximity Caves | Destroyed by G-50 Soldier with Heavy Laser Last Messages --------------- 10962_ Flexi-carbon Leg fries itself beyond repair. 10963_ Critical hit (Burn: +37). 10963_ Imp. Medium Treads destroyed. 10964_ Critical hit (Burn: +37). 10965_ Drone released from Drone Bay. 10966_ Flexi-carbon Leg fries itself beyond repair. 10966_ Lgt. Antimatter Reactor destroyed. 10967_ G-50 Soldier destroyed. 10969_ Rnf. Deuterium Engine fries itself beyond repair. 10969_ The unstable cave ceiling collapses. 10970_ Drone retrieved by Drone Bay. 10971_ Critical hit (Burn: +37). 10971_ Drone Bay destroyed. 10972_ System corrupted: Component data lost. 10972_ Critical hit (Burn: +37). 10972_ >> Lost connection to Drone. 10976_ Acquired 34 matter. Map ----- +----------------------------------------------------+ | ?????????? ?????# ## ##????????????###??????? | | ?????????? ????#### #???????????##"#??????? | | ??????????????## ##?########## "######?? | | ??????????????# #?# "### | | ??????????????# ### ### | | ?????????????# ####### | | ????????????# ##??##"" | | ??????????? ### #??# = # | | ??????????? ??### #??# ## | | ???????????? #### #??# ##? | | ???????????? #??# ###? | | ???????????? ## #??# # ## | | ????????????? #?## | | ?????????????# ####+### ## ## # # | | ??????????????# #" # ### # # | | ??????????????##??" g #g####### #### | | ???????????????# ?? g "# #?????###### | | ???????????????# ####g "# #?#####???# | | ???????????????# + "# ## #### | | ???????????????# "#g #?####### #??# | | ??????????# ## ######??##???# | | ?????????# % % #???????# # # | | ?????????# # n% *% #???????## ## | | ????????# ??# ;; #?????### | | ????????# # = ; # #?????# | | ????????# @% ## ###???## % | | ????????# # #%% ## #????# !!=/ | | ???????# ## ## % ### #???### ! | | ???????? ??######? * " ##### !#### | | ????????##? ??????????## %" ##??## | | ???????????????????????# # ##????? | | ???????????????????????# #### #### #?????? | | ???????????????????????## ## ## ##??# #?????? | | ????????????????????????# ## ##???# ?????? | | ????????????????????????## #####???? ????? | | ?????????????????????????# ##??????? ???? | | ???????????????????????### #????????## ??? | | ???????????????????????# ##?????????## ?? | | ???????????????????????## #???????????#######?? | | ????????????????????????######???????????????????? | | ?????????????????????????????????????????????????? | | ?????????????????????????????????????????????????? | | ?????????????????????????????????????????????????? | | ?????????????????????????????????????????????????? | | ?????????????????????????????????????????????????? | | ?????????????????????????????????????????????????? | | ?????????????????????????????????????????????????? | | ?????????????????????????????????????????????????? | | ?????????????????????????????????????????????????? | | ?????????????????????????????????????????????????? | +----------------------------------------------------+ Best States ------------- Heat Dissipation 65 Energy Generation 31 Energy Capacity 850 Matter Stores 300 Matter Capacity 300 Sight Range 16 Terrain Scan Density 10 Jamming Range 12 EM Shielding 2 Armor Coverage 300 Resistance: TH 10 Resistance: EM 15 Core Shielding 20 Weapon Cycling 15 Evasion (%) 55 Targeting Accuracy 8 Core Analysis 6 Recoil Reduction 4 Offensive Hacking 10 Item Schematics ----------------- Imp. Light Armor Plating | -8/Materials | Scanalyzed ECM Suite | -8/Materials | Scanalyzed Mak. Hacking Suite | -8/Materials | Scanalyzed System Shield | -8/Materials | Scanalyzed Combat Drone Bay | -7/Data Miner | Free Lgt. Regenerative Plating | -7/Data Miner | Free Cld. Aerolev Unit | -7/Data Miner | Free Exp. Targeting Computer | -7/Data Miner | Free Imp. Lightning Gun | -7/Data Miner | Free Field Propulsion Drive | -7/Data Miner | Free Mass Driver | -7/Data Miner | Free Imp. Recalibrator | -7/Data Miner | Free Imp. Thermal Generator | -7/Data Miner | Free Imp. Weapon Cycler | -7/Data Miner | Free Imp. Linear Gravjet | -7/Data Miner | Free Robot Schematics ------------------ G-47 Trooper | -7/Data Miner | Free L-41 Fighter | -7/Data Miner | Free G-50 Soldier | -7/Data Miner | Free Fabricated ------------ Nothing Alien Tech Used ----------------- None Achievements -------------- None Challenges ------------ None Game ------ Seed SigixMomentumExoskeleton Manual? 0 Play Time 01:42:35 Cumulative 269.2 hours Start 2024.08.29 @ 20:19:53 End 2024.08.30 @ 00:13:33 Sessions 3 Manual Loads 0 Difficulty Rogue Special Mode None Game No. 208 Rogue 203 Adventurer 5 Explorer 0 Win Type - Total 6 Types 4/0/2/0/0/0/0/0/0 Lore% 64 Gallery% 83 Achievement% 66 Wizard Run 0 Options --------- Layout 2 ASCII 0 Keyboard 0 Movement Mouse Keybinds 0 Fullscreen 2 Font 24/Smallcaps Map View 50x44 Zoom Use 0% Tactical HUD 1 Map Filters NONE Filters NONE Steam 1 RUN: 15103882-8e17-47fd-9838-b26c1e4a7d7a